[Event "Early-Titled-Tuesday-Blitz-February-27-2024"]
[Site "Chess.com"]
[Date "2024.02.27"]
[Round "2"]
[White "Jospem"]
[Black "Skatchkov_V"]
[Result "1-0"]
[WhiteElo "3079"]
[BlackElo "2650"]
[TimeControl "180+1"]
[EndTime "8:16:35 PST"]
[Termination "Jospem won by resignation"]

1. e4 {[%clk 0:03:00.9]} 1... e5 {[%clk 0:02:59.4]} 2. Nf3 {[%clk 0:03:01.2]}
2... Nf6 {[%clk 0:02:59.5]} 3. Nc3 {[%clk 0:03:01.7]} 3... Nc6 {[%clk
0:02:59.7]} 4. h3 {[%clk 0:03:02.4]} 4... g6 {[%clk 0:02:55.2]} 5. Bc4 {[%clk
0:03:01.3]} 5... Bg7 {[%clk 0:02:55.5]} 6. d3 {[%clk 0:03:01.5]} 6... O-O {[%clk
0:02:55.2]} 7. Bg5 {[%clk 0:03:02.1]} 7... h6 {[%clk 0:02:52.2]} 8. Be3 {[%clk
0:03:02.6]} 8... d6 {[%clk 0:02:51.3]} 9. Qd2 {[%clk 0:03:02.7]} 9... Kh7 {[%clk
0:02:51.6]} 10. g4 {[%clk 0:02:59]} 10... Nd7 {[%clk 0:02:27]} 11. O-O-O {[%clk
0:02:55.3]} 11... Nb6 {[%clk 0:02:24.5]} 12. Rdg1 {[%clk 0:02:36.8]} 12... Be6
{[%clk 0:02:21]} 13. Bb3 {[%clk 0:02:29.5]} 13... d5 {[%clk 0:02:19.6]} 14. Bxb6
{[%clk 0:02:27.4]} 14... dxe4 {[%clk 0:02:17.5]} 15. Bc5 {[%clk 0:02:18.2]}
15... exf3 {[%clk 0:02:13.8]} 16. Bxf8 {[%clk 0:02:15.9]} 16... Qxf8 {[%clk
0:02:06.1]} 17. Bxe6 {[%clk 0:02:14.3]} 17... fxe6 {[%clk 0:02:05.5]} 18. Kb1
{[%clk 0:02:12.6]} 18... Nd4 {[%clk 0:01:57.4]} 19. Ne4 {[%clk 0:02:09.3]} 19...
Rd8 {[%clk 0:01:50.9]} 20. Re1 {[%clk 0:02:00.1]} 20... c5 {[%clk 0:01:42.7]}
21. Qe3 {[%clk 0:01:55.3]} 21... b6 {[%clk 0:01:26.2]} 22. h4 {[%clk 0:01:54.7]}
22... a5 {[%clk 0:01:22.3]} 23. Rh3 {[%clk 0:01:51.7]} 23... c4 {[%clk
0:01:17.3]} 24. dxc4 {[%clk 0:01:38.9]} 24... b5 {[%clk 0:00:30.3]} 25. cxb5
{[%clk 0:01:37.6]} 25... Rb8 {[%clk 0:00:24.5]} 26. a4 {[%clk 0:01:18.8]} 26...
Qb4 {[%clk 0:00:17.6]} 27. c3 {[%clk 0:01:19.2]} 27... Qxa4 {[%clk 0:00:18]} 28.
cxd4 {[%clk 0:01:18.7]} 28... Rxb5 {[%clk 0:00:14.5]} 29. Rxf3 {[%clk
0:01:06.6]} 29... exd4 {[%clk 0:00:14.3]} 30. Qd3 {[%clk 0:01:06.1]} 30... Qb4
{[%clk 0:00:06.5]} 31. Re2 {[%clk 0:01:05.3]} 31... a4 {[%clk 0:00:05.3]} 32.
Nf6+ {[%clk 0:00:58.8]} 32... Kh8 {[%clk 0:00:05]} 33. Qxg6 {[%clk 0:00:55.3]}
1-0

[Event "Early-Titled-Tuesday-Blitz-February-27-2024"]
[Site "Chess.com"]
[Date "2024.02.27"]
[Round "2"]
[White "EvilMorty23"]
[Black "BardArtem"]
[Result "0-1"]
[WhiteElo "2540"]
[BlackElo "2769"]
[TimeControl "180+1"]
[EndTime "8:16:37 PST"]
[Termination "BardArtem won by checkmate"]

1. e4 {[%clk 0:03:00.1]} 1... e5 {[%clk 0:02:54.1]} 2. Nf3 {[%clk 0:03:00.2]}
2... Nc6 {[%clk 0:02:54.5]} 3. Bc4 {[%clk 0:03:00.3]} 3... Bc5 {[%clk
0:02:53.2]} 4. c3 {[%clk 0:03:00.5]} 4... Nf6 {[%clk 0:02:53.2]} 5. d3 {[%clk
0:03:00.8]} 5... d6 {[%clk 0:02:53]} 6. Nbd2 {[%clk 0:02:55.5]} 6... h6 {[%clk
0:02:53]} 7. Nf1 {[%clk 0:02:55.1]} 7... O-O {[%clk 0:02:51.8]} 8. Ng3 {[%clk
0:02:55.1]} 8... Be6 {[%clk 0:02:50]} 9. Bb3 {[%clk 0:02:53.9]} 9... Re8 {[%clk
0:02:38.9]} 10. O-O {[%clk 0:02:49.6]} 10... d5 {[%clk 0:02:34.3]} 11. Qe2
{[%clk 0:02:46.9]} 11... Qd7 {[%clk 0:02:28.9]} 12. Nh4 {[%clk 0:02:45.2]} 12...
Bg4 {[%clk 0:02:04.6]} 13. Qe1 {[%clk 0:02:44.4]} 13... dxe4 {[%clk 0:01:53.8]}
14. dxe4 {[%clk 0:02:43.4]} 14... Rad8 {[%clk 0:01:54.3]} 15. Nhf5 {[%clk
0:02:38.2]} 15... Nh5 {[%clk 0:01:51.8]} 16. h3 {[%clk 0:02:08.6]} 16... Nxg3
{[%clk 0:01:51.4]} 17. Nxg3 {[%clk 0:02:09.3]} 17... Be6 {[%clk 0:01:48.6]} 18.
Be3 {[%clk 0:02:07.3]} 18... Bf8 {[%clk 0:01:43.4]} 19. Rd1 {[%clk 0:02:02.9]}
19... Qc8 {[%clk 0:01:43]} 20. Qe2 {[%clk 0:02:03.1]} 20... g6 {[%clk
0:01:39.2]} 21. Bd5 {[%clk 0:01:54.4]} 21... Ne7 {[%clk 0:01:34.6]} 22. c4
{[%clk 0:01:47.9]} 22... a6 {[%clk 0:01:32.9]} 23. f4 {[%clk 0:01:41.4]} 23...
exf4 {[%clk 0:01:31.2]} 24. Bxf4 {[%clk 0:01:39.8]} 24... Nxd5 {[%clk
0:01:29.8]} 25. cxd5 {[%clk 0:01:36.1]} 25... Bxd5 {[%clk 0:01:29.9]} 26. Qe3
{[%clk 0:01:26.1]} 26... Kh7 {[%clk 0:01:17.4]} 27. Qc3 {[%clk 0:00:48.6]} 27...
Be6 {[%clk 0:01:13.6]} 28. Bxc7 {[%clk 0:00:42.2]} 28... Rxd1 {[%clk 0:01:13]}
29. Rxd1 {[%clk 0:00:43.1]} 29... Bg7 {[%clk 0:01:11.3]} 30. e5 {[%clk
0:00:28.6]} 30... Bxh3 {[%clk 0:01:07.9]} 31. gxh3 {[%clk 0:00:24.2]} 31... Qxh3
{[%clk 0:01:08.8]} 32. Rd3 {[%clk 0:00:23]} 32... h5 {[%clk 0:01:03.2]} 33. Nf1
{[%clk 0:00:14.2]} 33... Qg4+ {[%clk 0:00:56.7]} 34. Rg3 {[%clk 0:00:14.3]}
34... Qe4 {[%clk 0:00:57]} 35. Rf3 {[%clk 0:00:14.2]} 35... Bxe5 {[%clk
0:00:51.6]} 36. Bxe5 {[%clk 0:00:15.1]} 36... Rxe5 {[%clk 0:00:52.4]} 37. Rxf7+
{[%clk 0:00:14.9]} 37... Kg8 {[%clk 0:00:52.9]} 38. Rc7 {[%clk 0:00:10.8]} 38...
Rg5+ {[%clk 0:00:52.7]} 39. Kf2 {[%clk 0:00:08.4]} 39... Rg2# {[%clk 0:00:51.5]}
0-1

[Event "Early-Titled-Tuesday-Blitz-February-27-2024"]
[Site "Chess.com"]
[Date "2024.02.27"]
[Round "2"]
[White "amanjazu"]
[Black "aRk_iN"]
[Result "1-0"]
[WhiteElo "2512"]
[BlackElo "2239"]
[TimeControl "180+1"]
[EndTime "8:16:37 PST"]
[Termination "amanjazu won by checkmate"]

1. g3 {[%clk 0:03:00.9]} 1... d5 {[%clk 0:02:59.8]} 2. Bg2 {[%clk 0:03:01.8]}
2... c6 {[%clk 0:03:00]} 3. f4 {[%clk 0:03:02.4]} 3... Nf6 {[%clk 0:03:00.6]} 4.
Nf3 {[%clk 0:03:03.1]} 4... Bf5 {[%clk 0:03:00.2]} 5. O-O {[%clk 0:03:04]} 5...
e6 {[%clk 0:03:00.3]} 6. d3 {[%clk 0:03:04.9]} 6... Be7 {[%clk 0:03:00]} 7. Nc3
{[%clk 0:03:05.8]} 7... O-O {[%clk 0:02:57.2]} 8. Nh4 {[%clk 0:03:04.1]} 8...
Nfd7 {[%clk 0:02:51.5]} 9. Nxf5 {[%clk 0:03:00.7]} 9... exf5 {[%clk 0:02:52.4]}
10. e4 {[%clk 0:03:01.2]} 10... fxe4 {[%clk 0:02:49.5]} 11. dxe4 {[%clk
0:03:02.1]} 11... dxe4 {[%clk 0:02:48]} 12. Nxe4 {[%clk 0:03:03]} 12... Nc5
{[%clk 0:02:45.9]} 13. Be3 {[%clk 0:02:57.1]} 13... Nbd7 {[%clk 0:02:35.5]} 14.
Nd6 {[%clk 0:02:14.4]} 14... Qc7 {[%clk 0:02:25.8]} 15. Nf5 {[%clk 0:02:11]}
15... Bf6 {[%clk 0:02:25.7]} 16. c3 {[%clk 0:02:06.2]} 16... Rfe8 {[%clk
0:02:22.5]} 17. Bd4 {[%clk 0:02:03.5]} 17... Rad8 {[%clk 0:02:13.1]} 18. Qg4
{[%clk 0:01:57.1]} 18... g6 {[%clk 0:02:02.7]} 19. Bxf6 {[%clk 0:01:42.8]} 19...
Nxf6 {[%clk 0:02:02.3]} 20. Qh4 {[%clk 0:01:34.1]} 20... Nd5 {[%clk 0:01:21.4]}
21. Nh6+ {[%clk 0:01:11.1]} 21... Kg7 {[%clk 0:01:16.8]} 22. f5 {[%clk
0:01:09.1]} 22... Ne3 {[%clk 0:00:36.9]} 23. fxg6 {[%clk 0:00:31.8]} 23... Nxf1
{[%clk 0:00:36.1]} 24. Nf5+ {[%clk 0:00:17.3]} 24... Kxg6 {[%clk 0:00:19.2]} 25.
Qh6+ {[%clk 0:00:17.3]} 25... Kxf5 {[%clk 0:00:18.5]} 26. Rxf1+ {[%clk
0:00:17.8]} 26... Ke5 {[%clk 0:00:17.1]} 27. Qf6# {[%clk 0:00:11.3]} 1-0

[Event "Early-Titled-Tuesday-Blitz-February-27-2024"]
[Site "Chess.com"]
[Date "2024.02.27"]
[Round "2"]
[White "dpopadic"]
[Black "Kostya0705"]
[Result "0-1"]
[WhiteElo "2359"]
[BlackElo "2582"]
[TimeControl "180+1"]
[EndTime "8:16:42 PST"]
[Termination "Kostya0705 won on time"]

1. e4 {[%clk 0:03:00.9]} 1... c5 {[%clk 0:02:59.7]} 2. Nc3 {[%clk 0:03:00.3]}
2... e6 {[%clk 0:03:00.3]} 3. d3 {[%clk 0:02:59.5]} 3... Nc6 {[%clk 0:03:00.5]}
4. g4 {[%clk 0:02:59.6]} 4... Nge7 {[%clk 0:02:59.9]} 5. Bg2 {[%clk 0:02:59.6]}
5... d5 {[%clk 0:03:00]} 6. Nh3 {[%clk 0:02:59.5]} 6... a6 {[%clk 0:02:56.1]} 7.
O-O {[%clk 0:02:58.9]} 7... b5 {[%clk 0:02:56.6]} 8. Re1 {[%clk 0:02:48.5]} 8...
dxe4 {[%clk 0:02:54.6]} 9. Nxe4 {[%clk 0:02:48]} 9... Nd5 {[%clk 0:02:54.5]} 10.
c3 {[%clk 0:02:45.8]} 10... Bb7 {[%clk 0:02:53.5]} 11. Nf4 {[%clk 0:02:36.9]}
11... Nxf4 {[%clk 0:02:43.2]} 12. Bxf4 {[%clk 0:02:35.3]} 12... Rc8 {[%clk
0:02:42]} 13. Qe2 {[%clk 0:02:30.9]} 13... Be7 {[%clk 0:02:39.7]} 14. Be3 {[%clk
0:02:30.8]} 14... Nb8 {[%clk 0:02:39.3]} 15. Nf6+ {[%clk 0:02:19.6]} 15... Bxf6
{[%clk 0:02:39]} 16. Bxb7 {[%clk 0:02:19.5]} 16... Rc7 {[%clk 0:02:39.9]} 17.
Bg2 {[%clk 0:02:19]} 17... O-O {[%clk 0:02:40.3]} 18. Rad1 {[%clk 0:02:17.5]}
18... Rd7 {[%clk 0:02:40]} 19. f4 {[%clk 0:02:14.6]} 19... Qc7 {[%clk
0:02:35.4]} 20. g5 {[%clk 0:02:13.6]} 20... Be7 {[%clk 0:02:35.6]} 21. h4 {[%clk
0:02:12.9]} 21... Nc6 {[%clk 0:02:35.9]} 22. Be4 {[%clk 0:02:11.4]} 22... f5
{[%clk 0:02:11.2]} 23. gxf6 {[%clk 0:01:58.6]} 23... Bxf6 {[%clk 0:02:10.7]} 24.
h5 {[%clk 0:01:44.4]} 24... Qd6 {[%clk 0:02:05.8]} 25. Qg2 {[%clk 0:01:42.1]}
25... Ne7 {[%clk 0:01:52.1]} 26. Qf2 {[%clk 0:01:40.6]} 26... Rc7 {[%clk
0:01:46.2]} 27. Qh2 {[%clk 0:01:01.5]} 27... Nd5 {[%clk 0:01:32.9]} 28. Bc1
{[%clk 0:00:55.9]} 28... Re7 {[%clk 0:01:17.7]} 29. Rf1 {[%clk 0:00:54]} 29...
Ref7 {[%clk 0:01:17.8]} 30. Kh1 {[%clk 0:00:53]} 30... Bd8 {[%clk 0:01:16.2]}
31. d4 {[%clk 0:00:28.3]} 31... c4 {[%clk 0:01:15.2]} 32. Rf3 {[%clk 0:00:15.4]}
32... Bc7 {[%clk 0:01:04]} 33. Rdf1 {[%clk 0:00:14.4]} 33... Ne7 {[%clk
0:01:01.7]} 34. Qc2 {[%clk 0:00:11.8]} 34... Nf5 {[%clk 0:01:01.7]} 35. Qh2
{[%clk 0:00:09.6]} 35... Kh8 {[%clk 0:01:01.4]} 36. a3 {[%clk 0:00:07.7]} 36...
Rf6 {[%clk 0:01:01]} 37. Rh3 {[%clk 0:00:06.5]} 37... Qe7 {[%clk 0:00:59.5]} 38.
Qe2 {[%clk 0:00:04.9]} 38... Nh6 {[%clk 0:00:57.2]} 39. Qh2 {[%clk 0:00:01.9]}
39... Bxf4 {[%clk 0:00:54.1]} 0-1

[Event "Early-Titled-Tuesday-Blitz-February-27-2024"]
[Site "Chess.com"]
[Date "2024.02.27"]
[Round "2"]
[White "Chessbard1972"]
[Black "annacramling"]
[Result "1-0"]
[WhiteElo "2466"]
[BlackElo "2107"]
[TimeControl "180+1"]
[EndTime "8:16:42 PST"]
[Termination "Chessbard1972 won on time"]

1. d4 {[%clk 0:02:58.9]} 1... Nf6 {[%clk 0:02:59]} 2. c4 {[%clk 0:02:58.4]} 2...
e6 {[%clk 0:02:58.6]} 3. Nf3 {[%clk 0:02:58.3]} 3... d5 {[%clk 0:02:58]} 4. Bg5
{[%clk 0:02:57.6]} 4... Be7 {[%clk 0:02:56.9]} 5. cxd5 {[%clk 0:02:57]} 5...
exd5 {[%clk 0:02:56.5]} 6. Qc2 {[%clk 0:02:57.1]} 6... c6 {[%clk 0:02:56.1]} 7.
Nc3 {[%clk 0:02:56.9]} 7... O-O {[%clk 0:02:53.1]} 8. e3 {[%clk 0:02:56.5]} 8...
Bg4 {[%clk 0:02:47.9]} 9. Ne5 {[%clk 0:02:55.5]} 9... Bh5 {[%clk 0:02:47.6]} 10.
f4 {[%clk 0:02:52.1]} 10... Nbd7 {[%clk 0:02:47.6]} 11. Bd3 {[%clk 0:02:50.3]}
11... Ne4 {[%clk 0:02:38.6]} 12. Bxe7 {[%clk 0:02:36.8]} 12... Qxe7 {[%clk
0:02:36.5]} 13. Nxe4 {[%clk 0:02:20.5]} 13... dxe4 {[%clk 0:02:36.3]} 14. Bxe4
{[%clk 0:02:20.5]} 14... f5 {[%clk 0:01:02.4]} 15. Bd3 {[%clk 0:02:12.5]} 15...
Nxe5 {[%clk 0:00:39.6]} 16. dxe5 {[%clk 0:02:09.2]} 16... Qh4+ {[%clk 0:00:33]}
17. g3 {[%clk 0:02:06.3]} 17... Qh3 {[%clk 0:00:30.4]} 18. Bf1 {[%clk
0:02:05.1]} 18... Qg4 {[%clk 0:00:30.5]} 19. Bg2 {[%clk 0:01:54.3]} 19... Rad8
{[%clk 0:00:24.9]} 20. O-O {[%clk 0:01:53.7]} 20... Qe2 {[%clk 0:00:21.4]} 21.
Qxe2 {[%clk 0:01:50]} 21... Bxe2 {[%clk 0:00:22.3]} 22. Rf2 {[%clk 0:01:47.1]}
22... Bh5 {[%clk 0:00:21.4]} 23. e4 {[%clk 0:01:40.5]} 23... g6 {[%clk
0:00:12.7]} 24. Re1 {[%clk 0:01:37.3]} 24... Rd3 {[%clk 0:00:10.7]} 25. exf5
{[%clk 0:01:33.8]} 25... gxf5 {[%clk 0:00:10.6]} 26. Bf1 {[%clk 0:01:28.8]}
26... Rd4 {[%clk 0:00:09.2]} 27. Rc2 {[%clk 0:01:24.3]} 27... Kf7 {[%clk
0:00:07.4]} 28. Bc4+ {[%clk 0:01:22.6]} 28... Ke7 {[%clk 0:00:07.7]} 29. Kf2
{[%clk 0:01:19.8]} 29... Rfd8 {[%clk 0:00:07.6]} 30. Ke3 {[%clk 0:01:05]} 30...
Re4+ {[%clk 0:00:07.6]} 31. Kf2 {[%clk 0:01:02.7]} 31... Red4 {[%clk 0:00:05.5]}
32. Rec1 {[%clk 0:00:55.1]} 32... Rd2+ {[%clk 0:00:05.3]} 33. Ke3 {[%clk
0:00:53.5]} 33... R2d4 {[%clk 0:00:03.1]} 34. Be2 {[%clk 0:00:47.9]} 34... Re4+
{[%clk 0:00:03.1]} 35. Kf2 {[%clk 0:00:48.2]} 35... Rd7 {[%clk 0:00:02.4]} 36.
Bxh5 {[%clk 0:00:47]} 36... Rdd4 {[%clk 0:00:01.8]} 37. Bf3 {[%clk 0:00:46.2]}
1-0

[Event "Early-Titled-Tuesday-Blitz-February-27-2024"]
[Site "Chess.com"]
[Date "2024.02.27"]
[Round "2"]
[White "Susal_De_Silva"]
[Black "stollenmonster"]
[Result "1-0"]
[WhiteElo "2613"]
[BlackElo "2875"]
[TimeControl "180+1"]
[EndTime "8:16:45 PST"]
[Termination "Susal_De_Silva won by resignation"]

1. e4 {[%clk 0:03:00.9]} 1... c5 {[%clk 0:02:59.8]} 2. Nf3 {[%clk 0:03:00.9]}
2... Nf6 {[%clk 0:03:00.2]} 3. e5 {[%clk 0:02:57.5]} 3... Nd5 {[%clk 0:03:00]}
4. c3 {[%clk 0:02:58.2]} 4... Nc6 {[%clk 0:02:59.7]} 5. Bc4 {[%clk 0:02:58.4]}
5... Nb6 {[%clk 0:02:59.5]} 6. Bb3 {[%clk 0:02:58.8]} 6... g6 {[%clk 0:03:00.1]}
7. d4 {[%clk 0:02:58]} 7... cxd4 {[%clk 0:03:01]} 8. cxd4 {[%clk 0:02:58.5]}
8... Bg7 {[%clk 0:03:01.5]} 9. O-O {[%clk 0:02:58.3]} 9... O-O {[%clk
0:03:01.6]} 10. Re1 {[%clk 0:02:58.6]} 10... d6 {[%clk 0:03:01.9]} 11. Nc3
{[%clk 0:02:50.6]} 11... Bg4 {[%clk 0:03:00.7]} 12. exd6 {[%clk 0:02:45]} 12...
Qxd6 {[%clk 0:02:33.3]} 13. Be3 {[%clk 0:02:07.6]} 13... e6 {[%clk 0:02:22.3]}
14. h3 {[%clk 0:02:04]} 14... Bxf3 {[%clk 0:02:22.4]} 15. Qxf3 {[%clk
0:02:04.9]} 15... Na5 {[%clk 0:02:18.1]} 16. Ne4 {[%clk 0:01:52.8]} 16... Qe7
{[%clk 0:02:05.5]} 17. Bg5 {[%clk 0:01:44.5]} 17... f6 {[%clk 0:02:04.8]} 18.
Nxf6+ {[%clk 0:01:10.2]} 18... Rxf6 {[%clk 0:01:59.2]} 19. Bxf6 {[%clk
0:01:08.7]} 19... Qxf6 {[%clk 0:01:58.1]} 20. Rxe6 {[%clk 0:01:08.5]} 20... Nxb3
{[%clk 0:01:46.2]} 21. Rxf6 {[%clk 0:00:48.4]} 21... Nxa1 {[%clk 0:01:45.5]} 22.
Rf7 {[%clk 0:00:46.8]} 22... Nc2 {[%clk 0:01:35.2]} 23. Qxb7 {[%clk 0:00:36.2]}
23... Bxd4 {[%clk 0:01:33.3]} 24. Rc7 {[%clk 0:00:25.2]} 24... Nb4 {[%clk
0:01:21]} 25. Rc4 {[%clk 0:00:25.6]} 25... Be5 {[%clk 0:00:59.8]} 26. Rxb4
{[%clk 0:00:24.6]} 26... Rd8 {[%clk 0:00:58.8]} 27. g3 {[%clk 0:00:21.9]} 27...
Rd7 {[%clk 0:00:57.4]} 28. Rxb6 {[%clk 0:00:19.7]} 28... Rd1+ {[%clk 0:00:55.9]}
29. Kg2 {[%clk 0:00:19.7]} 29... axb6 {[%clk 0:00:56.4]} 30. Qxb6 {[%clk
0:00:17]} 30... Kg7 {[%clk 0:00:50.4]} 31. a4 {[%clk 0:00:16.4]} 31... Rd2
{[%clk 0:00:47.8]} 32. b3 {[%clk 0:00:09.6]} 32... Bd4 {[%clk 0:00:46.3]} 33.
Qc7+ {[%clk 0:00:10.2]} 33... Kg8 {[%clk 0:00:45.2]} 34. Qf4 {[%clk 0:00:09.6]}
34... Bc3 {[%clk 0:00:41.9]} 35. Qc4+ {[%clk 0:00:09.1]} 1-0

[Event "Early-Titled-Tuesday-Blitz-February-27-2024"]
[Site "Chess.com"]
[Date "2024.02.27"]
[Round "2"]
[White "ilya2700"]
[Black "Rurep26"]
[Result "0-1"]
[WhiteElo "2371"]
[BlackElo "2704"]
[TimeControl "180+1"]
[EndTime "8:16:46 PST"]
[Termination "Rurep26 won on time"]

1. c4 {[%clk 0:03:00.9]} 1... e5 {[%clk 0:02:58.5]} 2. Nc3 {[%clk 0:03:00.4]}
2... Nf6 {[%clk 0:02:57.8]} 3. Nf3 {[%clk 0:02:59.8]} 3... Nc6 {[%clk
0:02:57.4]} 4. e3 {[%clk 0:02:58.9]} 4... Bb4 {[%clk 0:02:55.4]} 5. Nd5 {[%clk
0:02:51.3]} 5... Be7 {[%clk 0:02:53.6]} 6. d4 {[%clk 0:02:41.6]} 6... exd4
{[%clk 0:02:52.1]} 7. Nxd4 {[%clk 0:02:27.7]} 7... O-O {[%clk 0:02:50.1]} 8. Be2
{[%clk 0:02:21.5]} 8... Nxd4 {[%clk 0:02:46.9]} 9. exd4 {[%clk 0:02:07.3]} 9...
Nxd5 {[%clk 0:02:46]} 10. cxd5 {[%clk 0:02:07.4]} 10... Bb4+ {[%clk 0:02:46.3]}
11. Bd2 {[%clk 0:02:06.8]} 11... Bd6 {[%clk 0:02:32]} 12. O-O {[%clk 0:01:58.2]}
12... Qh4 {[%clk 0:02:31.4]} 13. g3 {[%clk 0:01:54.8]} 13... Qxd4 {[%clk
0:02:30.4]} 14. Bc3 {[%clk 0:01:37.3]} 14... Qxd1 {[%clk 0:02:22.8]} 15. Raxd1
{[%clk 0:01:36.9]} 15... Re8 {[%clk 0:02:20]} 16. Rfe1 {[%clk 0:01:32.4]} 16...
b6 {[%clk 0:02:19.5]} 17. Bb5 {[%clk 0:01:29.9]} 17... Rxe1+ {[%clk 0:02:13.6]}
18. Rxe1 {[%clk 0:01:29.4]} 18... Bb7 {[%clk 0:02:14.5]} 19. Bxd7 {[%clk
0:01:19.9]} 19... Bxd5 {[%clk 0:02:13.5]} 20. a3 {[%clk 0:01:12.7]} 20... f6
{[%clk 0:02:02.8]} 21. h4 {[%clk 0:01:06]} 21... Kf7 {[%clk 0:02:00.5]} 22. h5
{[%clk 0:01:06.3]} 22... Bf3 {[%clk 0:01:46.2]} 23. Be6+ {[%clk 0:01:00.9]}
23... Kf8 {[%clk 0:01:46.6]} 24. h6 {[%clk 0:01:00.2]} 24... Re8 {[%clk
0:01:39.6]} 25. hxg7+ {[%clk 0:00:56.8]} 25... Kxg7 {[%clk 0:01:40.5]} 26. Re3
{[%clk 0:00:53.9]} 26... Bc6 {[%clk 0:01:32]} 27. g4 {[%clk 0:00:48.5]} 27...
Bc5 {[%clk 0:01:30.5]} 28. Re1 {[%clk 0:00:43.4]} 28... h6 {[%clk 0:01:25.2]}
29. b4 {[%clk 0:00:38.8]} 29... Bd6 {[%clk 0:01:23.3]} 30. Kf1 {[%clk
0:00:27.6]} 30... Bb5+ {[%clk 0:01:22.7]} 31. Kg1 {[%clk 0:00:27.4]} 31... Re7
{[%clk 0:01:20.4]} 32. Kg2 {[%clk 0:00:25.6]} 32... Bc6+ {[%clk 0:01:19.7]} 33.
Kh3 {[%clk 0:00:24]} 33... Bd7 {[%clk 0:01:19.5]} 34. Bxd7 {[%clk 0:00:19.3]}
34... Rxd7 {[%clk 0:01:20.4]} 35. Re6 {[%clk 0:00:18.6]} 35... Be7 {[%clk
0:01:19.5]} 36. Kh4 {[%clk 0:00:15.9]} 36... Kf7 {[%clk 0:01:20]} 37. Re4 {[%clk
0:00:15.3]} 37... f5+ {[%clk 0:01:18.9]} 38. Rxe7+ {[%clk 0:00:10.9]} 38... Kxe7
{[%clk 0:01:19.8]} 39. gxf5 {[%clk 0:00:11.1]} 39... Rd3 {[%clk 0:01:20.5]} 40.
Be5 {[%clk 0:00:09.9]} 40... c5 {[%clk 0:01:12.5]} 41. bxc5 {[%clk 0:00:05.6]}
41... bxc5 {[%clk 0:01:13.4]} 42. Kh5 {[%clk 0:00:06.2]} 42... Kf7 {[%clk
0:01:11.3]} 43. f4 {[%clk 0:00:03.2]} 43... c4 {[%clk 0:01:11.1]} 44. Kxh6
{[%clk 0:00:02.6]} 44... c3 {[%clk 0:01:11.5]} 0-1

[Event "Early-Titled-Tuesday-Blitz-February-27-2024"]
[Site "Chess.com"]
[Date "2024.02.27"]
[Round "2"]
[White "jcibarra"]
[Black "Mikhail_Golubev"]
[Result "1-0"]
[WhiteElo "2953"]
[BlackElo "2616"]
[TimeControl "180+1"]
[EndTime "8:16:48 PST"]
[Termination "jcibarra won on time"]

1. e4 {[%clk 0:03:00.9]} 1... c5 {[%clk 0:03:00.1]} 2. Nf3 {[%clk 0:02:59.9]}
2... d6 {[%clk 0:03:00.4]} 3. c3 {[%clk 0:03:00.3]} 3... Nf6 {[%clk 0:03:00]} 4.
h3 {[%clk 0:03:00.7]} 4... g6 {[%clk 0:02:53]} 5. Bd3 {[%clk 0:03:00.3]} 5...
Bg7 {[%clk 0:02:48.2]} 6. Bc2 {[%clk 0:03:00.3]} 6... O-O {[%clk 0:02:44.4]} 7.
O-O {[%clk 0:03:00.3]} 7... Nc6 {[%clk 0:02:43.5]} 8. d4 {[%clk 0:03:00.2]} 8...
cxd4 {[%clk 0:02:43.7]} 9. cxd4 {[%clk 0:03:00.2]} 9... e5 {[%clk 0:02:42.6]}
10. Nc3 {[%clk 0:02:59.1]} 10... exd4 {[%clk 0:02:33]} 11. Nxd4 {[%clk
0:02:58.6]} 11... Nxd4 {[%clk 0:02:19.1]} 12. Qxd4 {[%clk 0:02:58.3]} 12... Re8
{[%clk 0:02:19.4]} 13. Qb4 {[%clk 0:02:45.7]} 13... a5 {[%clk 0:01:50.3]} 14.
Qb5 {[%clk 0:02:38.2]} 14... Bd7 {[%clk 0:00:53]} 15. Qxb7 {[%clk 0:02:36.9]}
15... Rb8 {[%clk 0:00:52.9]} 16. Qa6 {[%clk 0:02:36.8]} 16... a4 {[%clk
0:00:48.5]} 17. a3 {[%clk 0:02:29.1]} 17... Qc7 {[%clk 0:00:37.8]} 18. Bg5
{[%clk 0:02:17.7]} 18... Rxb2 {[%clk 0:00:36.3]} 19. Bxf6 {[%clk 0:02:17.6]}
19... Bxf6 {[%clk 0:00:33.9]} 20. Nd5 {[%clk 0:02:17.5]} 20... Qd8 {[%clk
0:00:33.9]} 21. Bxa4 {[%clk 0:02:13.5]} 21... Bxa4 {[%clk 0:00:26.5]} 22. Qxa4
{[%clk 0:02:12.9]} 22... Bg7 {[%clk 0:00:24.6]} 23. Rac1 {[%clk 0:02:07.2]}
23... Re2 {[%clk 0:00:23.1]} 24. Rc4 {[%clk 0:02:01.2]} 24... Qb8 {[%clk
0:00:17.2]} 25. Rfc1 {[%clk 0:01:54.7]} 25... Rf8 {[%clk 0:00:14.3]} 26. Rc8
{[%clk 0:01:46.6]} 26... Qb2 {[%clk 0:00:10]} 27. Qa7 {[%clk 0:00:48.2]} 27...
Bd4 {[%clk 0:00:06.4]} 28. Qe7 {[%clk 0:00:35.3]} 28... Re1+ {[%clk 0:00:04.9]}
29. Kh2 {[%clk 0:00:22.7]} 1-0